Cogmind - Beta 16 @@@ ROGUE MODE // 2026.01.08 @ 09:19:55 Player: JustDragon Result: Destroyed by G-34 Mercenary with Small Laser Performance ------------- Evolutions (1) 500 Regions Visited (2) 400 Robots Destroyed (17) 85 Value Destroyed (541) 541 Prototype IDs (0) 0 Alien Tech Used (0) 0 Bonus (0) 0 TOTAL SCORE: 1526 Bonus ------- None Cogmind --------- Core Integrity 0/400 Matter 261/300 Energy 100/100 System Corruption 2% Temperature Cool (6) Movement Core (450) Ox8 Location -9/Materials Parts ------- > --- POWER (1) -------- (None) > --- PROPULSION (3) --- (None) > --- UTILITY (3) ------ Small Storage Unit Large Storage Unit > --- WEAPON (2) ------- (None) > --- INVENTORY (15) --- Ion Engine Aluminum Leg Heat Sink Peak State ------------ > --- POWER ------------ Ion Engine > --- PROPULSION ------- Light Treads Light Treads > --- UTILITY ---------- Small Storage Unit Large Storage Unit > --- WEAPON ----------- Assault Rifle Light Assault Rifle > --- INVENTORY -------- Assault Rifle [Rating: 7] Favorites ----------- Power Ion Engine Engine Ion Engine Propulsion Light Treads Treads Light Treads Leg Aluminum Leg Utility Large Storage Unit Storage Large Storage Unit Weapon Light Assault Rifle Ballistic Gun Light Assault Rifle Launcher Grenade Launcher Build | -11 -10 -9 ------- Run | Yrd Mat Mat Slots Evolved 2 | . . 2 Power . | . . . Propulsion 1 | . . 1 Utility 1 | . . 1 Weapon . | . . . Parts Attached 12 | 6 2 4 Power 2 | 1 . 1 Engine 2 | 1 . 1 Core . | . . . Reactor . | . . . Propulsion 4 | 2 . 2 Treads 2 | 2 . . Leg 2 | . . 2 Wheel . | . . . Hover . | . . . Flight . | . . . Utility 2 | 1 1 . Device . | . . . Storage 2 | 1 1 . Processor . | . . . Hackware . | . . . Protection . | . . . Artifact . | . . . Weapon 4 | 2 1 1 Energy Gun . | . . . Energy Cannon . | . . . Ballistic Gun 3 | 2 1 . Ballistic Cannon . | . . . Launcher 1 | . . 1 Special Weapon . | . . . Impact Weapon . | . . . Slashing Weapon . | . . . Piercing Weapon . | . . . Special Melee Weapon . | . . . Unidentified Prototypes . | . . . Parts Lost 10 | . 3 7 Power 2 | . . 2 Propulsion 4 | . 2 2 Utility . | . . . Weapon 4 | . 1 3 Highest Loss Streak 5 | . 2 5 To Critical Strikes 1 | . 1 . Average Backups 2 | 1 2 2 Power . | . . . Propulsion . | . . . Utility . | . . . Weapon 1 | . 1 . Tool/Special . | . . . Unused Backups 3 | . . 3 Power 1 | . . 1 Propulsion 1 | . . 1 Utility 1 | . . 1 Weapon . | . . . Tool/Special . | . . . Average Slot Usage (%) 58 | . 70 44 Engine 10 | . 14 6 Treads 9 | . 18 . Leg 2 | . . 4 Storage 14 | . 14 14 Ballistic Gun 20 | . 23 16 Peak Build Rating 7 | 6 7 7 Average Rating 4 | 4 4 4 On Entrance 3 | . 6 3 Avg Prop Armor Cover (%) 27 | 27 . . Naked Turns . | . . . Heaviest Build 35 | 13 28 35 Greatest Support 40 | 40 40 20 Greatest Overweight (x) 9 | 3 8 9 Average Overweight (x) 2 | . 1 6 Largest Inventory Capacity 15 | 8 15 15 Average Capacity 13 | 7 14 15 Most Carried 5 | 5 3 3 Average Carried 2 | 1 2 2 Final Capacity 15 | 8 15 15 Final Carried 3 | 1 3 3 Class Distribution -------------------- 100% | Mutant Dominant Class ---------------- Mutant | -10/Materials Mutant | -9/Materials Resources | -11 -10 -9 ----------- Run | Yrd Mat Mat Matter Collected 474 | 264 132 78 Remotely . | . . . Salvage Created 608 | 91 231 286 Parts 40 | 4 14 22 Haulers Intercepted . | . . . Recyclers Shooed . | . . . Parts Field Recycled . | . . . Retrieved Matter . | . . . Parts Self-Destructed . | . . . Prevented . | . . . Parts Restored . | . . . Kills | -11 -10 -9 ------- Run | Yrd Mat Mat Combat Hostiles Destroyed 15 | . 7 8 Guns 10 | . 7 3 AOE 5 | . . 5 Classes Destroyed 5 | 1 2 2 Recycler 1 | 1 . . Watcher 1 | . . 1 Swarmer 3 | . 3 . Grunt 10 | . 4 6 Sentry 2 | . . 2 Best Kill Streak 4 | 1 2 4 Combat Bots Only 4 | . 2 4 Max Kills in Single Turn 3 | 1 1 3 Gunslinging . | . . . Exploded 3 | . . 3 Melee . | . . . Uniques/NPCs Destroyed . | . . . Combat | -11 -10 -9 -------- Run | Yrd Mat Mat Hostile Shots Fired 193 | . 75 118 Missed 57 | . 21 36 Hits 136 | . 54 82 Projectile 136 | . 54 82 Critical Strikes 2 | . 2 . Damage Taken 1607 | . 625 982 Core 528 | . 127 401 Absorbed by Shields . | . . . Core Remaining (%) 74 | 100 49 . Volleys Fired 60 | 1 40 19 Largest 2 | 2 2 2 Hottest 50 | 40 40 50 Shots Fired 105 | 2 70 33 Gun 99 | 2 70 27 Cannon . | . . . Launcher 6 | . . 6 Special . | . . . Kinetic 99 | 2 70 27 Thermal . | . . . Explosive 6 | . . 6 Electromagnetic . | . . . Robot Hit Streak 11 | 2 11 9 Robot Miss Streak 4 | . 4 3 Penetration Max . | . . . Secondary Targets . | . . . Shots Hit Robots 66 | 2 42 22 Core Hits 44 | 2 19 23 Critical Kills . | . . . Critical Parts Destroyed . | . . . Critical Strikes . | . . . Melee Attacks . | . . . Impact . | . . . Slashing . | . . . Piercing . | . . . Sneak Attacks . | . . . Combat Hostiles . | . . . Follow-up Attacks . | . . . Damage Inflicted 1264 | 19 436 809 Guns 661 | 19 436 206 Cannons . | . . . Explosions 587 | . . 587 Melee . | . . . Ramming 16 | . . 16 Kinetic 661 | 19 436 206 Thermal 252 | . . 252 Explosive 335 | . . 335 Electromagnetic . | . . . Impact . | . . . Slashing . | . . . Piercing . | . . . Highest Corruption 2 | . . 2 Average Corruption 1 | . . 1 Corruption Purged . | . . . Corruption Blocked . | . . . Overload Shots . | . . . Overflow Damage . | . . . Projectiles . | . . . Explosions . | . . . Melee . | . . . Knockbacks 1 | . . 1 Impact 1 | . . 1 Kinetic . | . . . Secondary . | . . . Self-Inflicted Damage 44 | . . 44 Shots 2 | . . 2 Rammed 7 | . . 7 Targets Rammed 13 | . . 13 Kicked 6 | . . 6 Crushed . | . . . Highest Temperature 27 | . 27 8 Average Temperature 9 | . 10 4 Received Heat Transfer 780 | . 282 498 Siege Activations . | . . . Martial Activations . | . . . Shielding Activations . | . . . Robots Disrupted . | . . . Combat Hostiles . | . . . Robots Corrupted . | . . . Combat Hostiles . | . . . Parts Fried . | . . . Impact Corruptions . | . . . Robots Melted . | . . . Combat Hostiles . | . . . Parts Melted . | . . . Heat Transferred 150 | . . 150 Parts Sabotaged . | . . . Parts Stolen . | . . . Parts Stripped . | . . . Power Chain Reactions . | . . . Alert | -11 -10 -9 ------- Run | Yrd Mat Mat Maximum Alert Level . | . . . Low Security (%) 100 | 100 100 100 Level 1 . | . . . Level 2 . | . . . Level 3 . | . . . Level 4 . | . . . Level 5 . | . . . High Security . | . . . Max Security . | . . . Peak Influence 199 | 5 90 199 Initial 18 | . . 18 Average 31 | . 25 50 Influence Increases 514 | 5 200 309 Destroy 0b10 Robot/C 300 | . 140 160 Destroy 0b10 Robot/NC 10 | 5 . 5 Destroy Leader 72 | . 30 42 Disable Machine 30 | . . 30 Destroy Structure 42 | . . 42 Lose Combat Pursuer 60 | . 30 30 Influence Decreases 375 | 5 156 214 Entered New Map 26 | . . 26 Time Decay 249 | 5 126 118 Lost Part 100 | . 30 70 Squads Dispatched 3 | . 1 2 Investigation . | . . . Extermination . | . . . Reinforcement 3 | . 1 2 Assault . | . . . Garrison . | . . . Intercept . | . . . Searches Triggered . | . . . Construction Impeded 1 | . . 1 Haulers Reinforced . | . . . Active Scanning Responses . | . . . Cargo Convoy Interrupts . | . . . Stealth | -11 -10 -9 --------- Run | Yrd Mat Mat Distress Signals 4 | . 2 2 Communications Jammed . | . . . Distress Signals . | . . . Times Spotted 32 | . 17 15 Peak Tracking Total 7 | . 5 7 Tactical Retreats 3 | . 1 2 Traps | -11 -10 -9 ------- Run | Yrd Mat Mat Traps Triggered . | . . . Indirectly . | . . . Trap Hack Attempts . | . . . Triggered . | . . . Disarmed . | . . . Reprogrammed . | . . . Reused . | . . . Traps Extracted . | . . . Installed . | . . . Triggered . | . . . Machines | -11 -10 -9 ---------- Run | Yrd Mat Mat Machines Disabled 2 | . . 2 Max in Single Turn 1 | . . 1 Machines Repaired . | . . . Machines Dismantled . | . . . Machines Sabotaged . | . . . Overloaded Fab Kills . | . . . Hacking | -11 -10 -9 --------- Run | Yrd Mat Mat Machines Accessed . | . . . Terminals . | . . . Fabricators . | . . . Repair Stations . | . . . Recycling Units . | . . . Scanalyzers . | . . . Garrison Access . | . . . Total Hacks . | . . . Successful . | . . . Failed . | . . . Catastrophic . | . . . Database Lockouts . | . . . Manual . | . . . Terminals . | . . . Fabricators . | . . . Repair Stations . | . . . Recycling Units . | . . . Scanalyzers . | . . . Garrison Access . | . . . Terminal Hacks . | . . . Fabricator Hacks . | . . . Repair Station Hacks . | . . . Recycling Unit Hacks . | . . . Scanalyzer . | . . . Garrison Access Hacks . | . . . Unauthorized Hacks . | . . . Terminals . | . . . Fabricators . | . . . Repair Stations . | . . . Recycling Units . | . . . Scanalyzers . | . . . Garrison Access . | . . . Data Cores Recovered . | . . . Used . | . . . Hacking Detections . | . . . Full Trace Events . | . . . Feedback Events . | . . . Feedback Blocked . | . . . Robot Schematics Acquired . | . . . Robots Built . | . . . Authchips . | . . . Time . | . . . Total Robot Build Rating . | . . . Part Schematics Acquired . | . . . Parts Built . | . . . Authchips . | . . . Time . | . . . Total Part Build Rating . | . . . Part Studies Acquired . | . . . Parts Repaired . | . . . Time . | . . . Parts Recycled . | . . . Recycled Matter . | . . . Retrieved Matter . | . . . Retrieved Components . | . . . Parts Scanalyzed . | . . . Part Schematics Acquired . | . . . Parts Damaged . | . . . Bothacking | -11 -10 -9 ------------ Run | Yrd Mat Mat Used RIF Installer . | . . . Robots Hacked . | . . . Non-combat . | . . . Combat . | . . . Robot Hacks Applied . | . . . Relay Couplers Released . | . . . Fabnet Peak Effective % . | . . . Robots Rewired . | . . . Allies Hacked . | . . . Hacks Repelled . | . . . Allies | -11 -10 -9 -------- Run | Yrd Mat Mat Total Allies . | . . . Largest Group . | . . . Highest-Rated Group . | . . . Highest-Rated Ally . | . . . Total Orders . | . . . Ally Attacks . | . . . Total Damage . | . . . Kills . | . . . Allies Corrupted . | . . . Allies Melted . | . . . Intel | -11 -10 -9 ------- Run | Yrd Mat Mat Active Infowar (turns) . | . . . Robot Analysis Total . | . . . Derelict Logs Recovered . | . . . Drone Launches . | . . . Drone Recoveries . | . . . Exploration | -11 -10 -9 ------------- Run | Yrd Mat Mat Turns Passed 935 | 128 435 372 Spaces Moved 312 | 89 155 68 Core 110 | 40 25 45 Treads 179 | 49 130 . Legs 23 | . . 23 Wheels . | . . . Hover . | . . . Flight . | . . . Fastest Speed 50 | 50 160 190 Average Speed 227 | 127 214 386 Slowest Speed 500 | 200 450 500 Overloaded Moves . | . . . Propulsion Burnouts . | . . . Robots Hopped . | . . . Potential Cave-ins . | . . . Cave-ins Triggered . | . . . Exploration Rate (%) 13 | 4 26 10 Regions Visited 2 Branch Regions . Pre-discovered Areas . | . . . Known Exits Taken . | . . . Unknown Exits Taken 2 | 1 1 . Scrap Searched . | . . . Spaces Dug . | . . . Terrain Destroyed 41 | . . 41 Melee . | . . . Projectile . | . . . AOE 41 | . . 41 Terrain Rammed . | . . . Walls Destroyed . | . . . Machines Disabled . | . . . Actions | -11 -10 -9 --------- Run | Yrd Mat Mat Total 414 | 102 200 112 Wait . | . . . Move 310 | 88 154 68 Hop . | . . . Pick Up 15 | 7 2 6 Fast Attach . | . . . Attach 14 | 6 2 6 Detach 2 | . 2 . Swap . | . . . Drop . | . . . Fire 60 | 1 40 19 Melee . | . . . Ram 7 | . . 7 Kick 6 | . . 6 Crush . | . . . Escape Stasis . | . . . Rewire . | . . . Trap . | . . . Miscellaneous . | . . . Route ------- -11/Scrapyard -10/Materials -9/Materials History --------- Turn | Location | Event 17 | -11/Scrapyard | Discovered new exit (range 16) 129 | -11/Scrapyard | Entered Materials 309 | -10/Materials | Build established: Mutant 460 | -10/Materials | Core integrity fell below 50% 519 | -10/Materials | Discovered new exit (range 10) 564 | -10/Materials | Entered another Materials area 564 | -9/Materials | Evolved 2 slots: Propulsion x1, Utility x1 858 | -9/Materials | Core integrity fell below 50% 922 | -9/Materials | Core integrity fell below 20% 926 | -9/Materials | Lost 5 parts (1p2n2w) 936 | -9/Materials | Destroyed by G-34 Mercenary with Small Laser Last Messages --------------- 00917_ U-05 Engineer lays Concrete. 00918_ Slammed into G-34 Mercenary. 00918_ Destabilizing: System corrupted (+1). 00919_ K-01 Serf collects debris. 00919_ U-05 Engineer builds a Wall. 00920_ R-06 Scavenger collects Imp. Ion Engine. 00921_ K-01 Serf collects debris. 00923_ Slammed into G-34 Mercenary. 00923_ U-05 Engineer builds a Wall. 00924_ R-06 Scavenger collects Sml. Laser. 00924_ K-01 Serf collects debris. 00927_ R-06 Scavenger collects Lgt. Armor Plating. 00927_ U-05 Engineer builds a Wall. 00927_ Slammed into G-34 Mercenary. 00927_ Destabilizing: System corrupted (+1). 00930_ K-01 Serf collects debris. 00931_ R-06 Scavenger collects Aluminum Leg. 00932_ Slammed into G-34 Mercenary. 00933_ K-01 Serf collects debris. Map ----- +----------------------------------------------------+ | ?????? #??????????????????????????????????? | | ????#? #??????????????????????????????????? | | ????# #??????????????????????????????????? | | ????# """ """ #??????????????????????????????????? | | ????# """ """ #??????????????????????????????????? | | ????# """ """ #??????????????????????????????????? | | ?????? #??#???????????????????????????????? | | ???????? ??? #???????????????????????????????? | | ??????####+#### #######+????????????????????????? | | ??????# ???????????????????????? | | ??????# ???????????????????????? | | ??????# ???????????????????????? | | ??????####+#############+????????????????????????? | | ????????# #???????????????????????????????? | | ????????# #???????????????????????????????? | | ????????# #???????????????????????????????? | | ????????# #???????????????????????????????? | | ????????#!!! #???????????????????????????????? | | ????????#!!! #???????????????????????????????? | | ????????#!!! #????????? ###########??????????? | | ????????# #????????? ?????????? | | ????????# #????????? ^ ?????????? | | ????????######+###?????????""" /![ ????????? | | ?????????????# #???????????"R ! #????????? | | ?????????????# ############""" k #????????? | | ?????????????# @ o #????????? | | ?????????????# g =% ] #????????? | | ?????????????# % ]#????????? | | ????????????##+###k####### ##### #????????? | | ????????????# % * % #????????? | | ????????????# ! = % [ " #????????? | | ????????????# [ # #????????? | | ????????????# ## % # ???????? | | ????????????# = ## !% gg %r ????????? | | ????????????# ## !k # ????????? | | ????????????# ## ###+##?????????? | | ????????????# ## k ; ?????????? | | ????????????############# #;; ;;;;; ??????????? | | ????????????????????????#####;;## # ??????????? | | ?????????????????????????????###?## """??????????? | | ?????????????????????????????????????????????????? | | ?????????????????????????????????????????????????? | | ?????????????????????????????????????????????????? | | ?????????????????????????????????????????????????? | | ?????????????????????????????????????????????????? | | ?????????????????????????????????????????????????? | | ?????????????????????????????????????????????????? | | ?????????????????????????????????????????????????? | | ?????????????????????????????????????????????????? | | ?????????????????????????????????????????????????? | +----------------------------------------------------+ Best States ------------- Heat Dissipation 28 Energy Generation 10 Energy Capacity 250 Matter Stores 300 Matter Capacity 300 Sight Range 16 Terrain Scan Density 10 Evasion (%) 50 Recoil Reduction 2 Item Schematics ----------------- None Robot Schematics ------------------ None Fabricated ------------ Nothing Repaired ---------- Nothing Studied --------- None Alien Tech Used ----------------- None Achievements -------------- None Challenges ------------ None Game ------ Seed MomentumDisruptionSaw Manual? 0 Play Time 00:06:36 Cumulative 3.8 hours Start 2026.01.08 @ 09:14:26 End 2026.01.08 @ 09:19:55 Sessions 1 Manual Loads 0 Difficulty Rogue Special Mode None Game No. 19 Rogue 19 Adventurer 0 Explorer 0 Win Type - Total 0 Types 0/0/0/0/0/0/0/0/0/0 Lore% 3 Gallery% 7 Achievement% 7 Wizard Run 0 Options --------- Layout 2 ASCII 0 Keyboard 1 Movement Arrows Keybinds 0 Fullscreen 2 Font 32/SmallcapsGlow Map View 50x49 Zoom Use 0% Tactical HUD 1 Map Filters NONE Filters NONE Steam 1 RUN: 0cd7d122-226f-4662-9dd5-9cfdc1cbf421